bitfinex-derivatives/quotes_BTCF0:USTF0_20230702
["timestamp","ask_amount","ask_price","bid_price","bid_amount"]
[1688339885037,0.01822969,30591.0,30590.0,0.00018012]
[1688339885336,0.02472969,30591.0,30590.0,0.00018012]
[1688339885526,0.04434369,30591.0,30590.0,0.00018012]
[1688339885833,0.04434369,30591.0,30581.0,0.19599029]
[1688339885834,0.122,30589.0,30579.0,0.17898357]
[1688339886134,0.122,30589.0,30579.0,0.035621]
[1688339886135,0.5928,30580.0,30579.0,0.035621]
[1688339886326,0.612421,30580.0,30579.0,0.28913853]
[1688339886532,0.612421,30580.0,30579.0,0.4521221]
[1688339886735,0.612421,30580.0,30579.0,0.016]
[1688339887342,0.612421,30580.0,30578.0,0.016]
[1688339887343,0.63065069,30580.0,30578.0,0.016]
[1688339887526,0.247,30579.0,30578.0,0.016]
[1688339887829,0.28485069,30579.0,30577.0,0.016]
[1688339888035,0.627322,30578.0,30577.0,0.016]
[1688339888231,0.64555169,30578.0,30577.0,0.016]
[1688339888637,0.627322,30578.0,30577.0,0.03484945]
[1688339888830,0.611322,30578.0,30577.0,0.03847145]
[1688339889232,0.611322,30578.0,30577.0,0.02757184]
[1688339889541,0.611322,30578.0,30577.0,0.00872239]
[1688339890036,0.611322,30578.0,30577.0,0.02834439]
[1688339890432,0.611322,30578.0,30577.0,0.04657408]
[1688339890628,0.611322,30578.0,30577.0,0.02834439]
[1688339892036,0.611322,30578.0,30577.0,0.04657408]
[1688339892239,0.611322,30578.0,30577.0,0.02834439]
[1688339893239,0.611322,30578.0,30577.0,0.04719384]
[1688339893537,0.611322,30578.0,30577.0,0.06542353]
[1688339894041,0.5917,30578.0,30577.0,0.06542353]
[1688339897042,0.5917,30578.0,30577.0,0.04719384]
[1688339897230,0.5917,30578.0,30577.0,0.06542353]
[1688339897428,0.2469,30578.0,30577.0,0.06542353]
[1688339898438,0.2469,30578.0,30577.0,0.07192353]
[1688339898648,0.296052,30581.0,30577.0,0.07192353]
[1688339898649,0.247,30579.0,30578.0,0.06679893]
[1688339898942,0.247,30579.0,30578.0,0.687802]
[1688339900936,0.019619,30582.0,30578.0,0.441902]
[1688339901144,0.266619,30582.0,30581.0,0.2464]
[1688339901336,0.266619,30582.0,30581.0,0.35749465]
[1688339901537,0.266619,30582.0,30581.0,0.36554497]
[1688339902441,0.266619,30582.0,30581.0,0.11914497]
[1688339902652,0.2465,30582.0,30581.0,0.11914497]
[1688339903940,0.00049052,30583.0,30581.0,0.36614497]
[1688339904139,0.00049052,30583.0,30582.0,0.28267914]
[1688339904339,0.00049052,30583.0,30582.0,0.66309814]
[1688339904539,0.3608,30586.0,30583.0,0.03707914]
[1688339904737,0.3608,30586.0,30585.0,0.247]
[1688339904947,0.3608,30586.0,30585.0,0.266617]
[1688339905145,0.3608,30586.0,30585.0,0.31019614]
[1688339905348,0.266615,30588.0,30585.0,0.31733889]
[1688339905539,0.266615,30588.0,30587.0,0.2455]
[1688339905845,0.27272604,30588.0,30587.0,0.30219514]
[1688339906045,0.019615,30588.0,30587.0,0.30279514]
[1688339906243,0.019615,30588.0,30587.0,0.30926148]
[1688339907140,0.31287141,30590.0,30587.0,0.30926148]
[1688339907343,0.31287141,30590.0,30589.0,0.2459]
[1688339907548,0.31287141,30590.0,30589.0,0.265514]
[1688339907744,0.31287141,30590.0,30589.0,0.30890065]
[1688339912558,0.31287141,30590.0,30589.0,0.31000065]
[1688339913050,0.31287141,30590.0,30589.0,0.30910065]
[1688339913051,0.00049041,30590.0,30589.0,0.30910065]
[1688339914747,0.02010441,30590.0,30589.0,0.30910065]
[1688339917654,0.26500441,30590.0,30589.0,0.25220751]
[1688339917846,0.26500441,30590.0,30589.0,0.00630751]
[1688339918960,0.26500441,30590.0,30589.0,0.02592151]
[1688339920462,0.51720441,30590.0,30589.0,0.00630751]
[1688339920758,0.51720441,30590.0,30589.0,0.015]
[1688339921064,0.5354341,30590.0,30589.0,0.015]
[1688339922047,0.5354341,30590.0,30589.0,0.02041588]
[1688339922948,0.5367341,30590.0,30589.0,0.00541517]
[1688339923462,0.5367341,30590.0,30583.0,0.06552022]
[1688339923654,0.627418,30584.0,30583.0,0.06552022]
[1688339924055,0.627418,30584.0,30583.0,0.06564813]
[1688339924457,0.64564769,30584.0,30583.0,0.06564813]
[1688339924652,0.627418,30584.0,30583.0,0.06564813]
[1688339925054,0.64564769,30584.0,30583.0,0.06564813]
[1688339925259,0.627418,30584.0,30583.0,0.06564813]
[1688339925665,0.627418,30584.0,30583.0,0.09817603]
[1688339926563,0.64564769,30584.0,30583.0,0.09817603]
[1688339926750,0.627418,30584.0,30583.0,0.09817603]
[1688339926952,0.64564769,30584.0,30583.0,0.09817603]
[1688339927162,0.627418,30584.0,30583.0,0.09817603]
[1688339929364,0.627418,30584.0,30583.0,0.11702548]
[1688339929759,0.627418,30584.0,30583.0,0.03756955]
[1688339929966,0.627418,30584.0,30583.0,0.11713675]
[1688339930465,0.627418,30584.0,30583.0,0.02547404]
[1688339931366,0.627418,30584.0,30583.0,0.02624259]
[1688339931560,0.627418,30584.0,30583.0,0.12404432]
[1688339931760,0.627418,30584.0,30583.0,0.04509204]
[1688339932353,0.627418,30584.0,30583.0,0.1429017]
[1688339932967,0.627418,30584.0,30583.0,0.16113139]
[1688339933270,0.627418,30584.0,30583.0,0.1429017]
[1688339933468,0.627418,30584.0,30583.0,0.12405225]
[1688339933766,0.627418,30584.0,30583.0,0.10443425]
[1688339934168,0.64564769,30584.0,30583.0,0.10443425]
[1688339934762,0.627418,30584.0,30583.0,0.10443425]
[1688339935765,0.64564769,30584.0,30583.0,0.10443425]
[1688339939870,0.64564769,30584.0,30583.0,0.00662459]
[1688339941065,0.627418,30584.0,30583.0,0.00662459]
[1688339941259,0.627418,30584.0,30583.0,0.02547404]
[1688339941459,0.627418,30584.0,30583.0,0.04509204]
[1688339941865,0.627418,30584.0,30583.0,0.06332173]
[1688339942571,0.627418,30584.0,30583.0,0.19324988]
[1688339942873,0.627418,30584.0,30583.0,0.40967616]
[1688339943472,0.305754,30586.0,30583.0,0.52524801]
[1688339943673,0.2469,30586.0,30585.0,0.37748896]
[1688339943874,0.2469,30586.0,30585.0,0.48304328]
[1688339944173,0.2469,30586.0,30585.0,0.52625717]
[1688339946466,0.266516,30586.0,30585.0,0.52625717]
[1688339946869,0.019616,30586.0,30585.0,0.24217803]
[1688339947069,0.266616,30586.0,30585.0,0.35306677]
[1688339947272,0.266616,30586.0,30585.0,0.10402639]
[1688339947570,0.28484569,30586.0,30585.0,0.07139714]
[1688339948664,0.28484569,30586.0,30585.0,0.00613475]
[1688339949971,0.28484569,30586.0,30585.0,0.07139714]
[1688339951265,0.266616,30586.0,30585.0,0.07139714]
[1688339952276,0.266616,30586.0,30585.0,0.02575175]
[1688339952465,0.266616,30586.0,30585.0,0.16072253]
[1688339954670,0.266616,30586.0,30585.0,0.14187308]
[1688339955366,0.266616,30586.0,30585.0,0.12364339]
[1688339955566,0.266616,30586.0,30585.0,0.43622639]
[1688339956274,0.266616,30586.0,30585.0,0.33833475]
[1688339956570,0.266616,30586.0,30585.0,0.43622639]
[1688339957081,0.266616,30586.0,30585.0,0.45507584]
[1688339957374,0.266616,30586.0,30585.0,0.47469284]
[1688339957574,0.266616,30586.0,30585.0,0.39503089]
[1688339959284,0.266116,30586.0,30585.0,0.64053089]
[1688339959471,0.266116,30586.0,30585.0,0.98745243]
[1688339960276,0.266116,30586.0,30585.0,0.99395243]
[1688339960463,0.266116,30586.0,30585.0,0.99399793]
[1688339960663,0.266116,30586.0,30585.0,0.86344669]
[1688339962079,0.266116,30586.0,30585.0,0.85694669]
[1688339962971,0.2465,30586.0,30585.0,0.85694669]
[1688339963576,0.2465,30586.0,30585.0,1.01993026]
[1688339965888,0.2465,30586.0,30585.0,0.85694669]
[1688339967278,0.2465,30586.0,30585.0,0.88337908]
[1688339969786,0.247,30586.0,30585.0,0.88337908]
[1688339969977,0.247,30586.0,30585.0,1.04673545]
[1688339973888,0.247,30586.0,30585.0,0.88337908]
[1688339976983,0.3608,30587.0,30585.0,0.88337908]
[1688339977185,0.3608,30587.0,30586.0,0.62524566]
[1688339977492,0.3608,30587.0,30586.0,0.68693442]
[1688339983599,0.380416,30587.0,30586.0,0.68693442]
[1688339985296,0.32198652,30589.0,30588.0,1.0]
[1688339985297,0.02594852,30589.0,30588.0,1.0]
[1688339985496,0.18791257,30598.0,30591.0,0.019613]
[1688339985696,0.247,30597.0,30596.0,0.09798392]
[1688339985897,0.266609,30597.0,30596.0,0.36459392]
[1688339986201,0.266609,30597.0,30596.0,0.40167306]
[1688339986498,0.266609,30597.0,30596.0,0.30368914]
[1688339987296,0.266609,30597.0,30596.0,0.36896594]
[1688339987490,0.266609,30597.0,30596.0,0.30368914]
[1688339988600,0.266609,30597.0,30596.0,0.36893836]
[1688339989098,0.247,30597.0,30596.0,0.36893836]
[1688339991694,0.2465,30597.0,30596.0,0.08485922]
[1688339992196,0.2465,30597.0,30596.0,0.01961]
[1688339992597,0.2465,30597.0,30596.0,0.26661]
[1688339992798,0.2465,30597.0,30596.0,0.28483969]
[1688339995505,0.2465,30597.0,30596.0,0.30368914]
[1688339997804,0.2465,30597.0,30596.0,0.26661]
[1688339998191,0.2465,30597.0,30596.0,0.28483969]
[1688339998903,0.2465,30597.0,30596.0,0.26661]
[1688339999116,0.2465,30597.0,30596.0,0.28483969]
[1688339999404,0.2465,30597.0,30596.0,0.26661]
[1688340000107,0.2465,30597.0,30596.0,0.28483969]
[1688340000305,0.2465,30597.0,30596.0,0.28545945]
[1688340000700,0.2465,30597.0,30596.0,0.30368914]
[1688340002005,0.26611,30597.0,30596.0,0.28545945]
[1688340002811,0.2465,30597.0,30596.0,0.30368914]
[1688340003808,0.2465,30597.0,30596.0,0.28545945]
[1688340004008,0.2465,30597.0,30596.0,0.30368914]
[1688340004708,0.2465,30597.0,30596.0,0.28545945]
[1688340004906,0.27261,30597.0,30596.0,0.26661]
[1688340005106,0.27261,30597.0,30594.0,0.29603]
[1688340005107,0.27311,30597.0,30594.0,0.29603]
[1688340005409,0.266511,30595.0,30594.0,0.29603]
[1688340006012,0.266511,30595.0,30594.0,0.30001013]
[1688340006614,0.28474069,30595.0,30594.0,0.30001013]
[1688340007111,0.266511,30595.0,30594.0,0.30001013]
[1688340007809,0.28474069,30595.0,30594.0,0.30001013]
[1688340008797,0.266511,30595.0,30594.0,0.30001013]
[1688340010716,0.266511,30595.0,30594.0,0.25098013]
[1688340011307,0.266511,30595.0,30594.0,0.27059213]
[1688340011512,0.28474069,30595.0,30594.0,0.27059213]
[1688340011711,0.266511,30595.0,30594.0,0.27059213]
[1688340012013,0.28474069,30595.0,30594.0,0.25098013]
[1688340012516,0.266511,30595.0,30594.0,0.25098013]
[1688340012719,0.266511,30595.0,30594.0,0.27059213]
[1688340013114,0.28474069,30595.0,30594.0,0.27059213]
[1688340014614,0.266511,30595.0,30594.0,0.28882182]
[1688340014815,0.266511,30595.0,30594.0,0.27059213]
[1688340015207,0.28474069,30595.0,30594.0,0.27059213]
[1688340015407,0.266511,30595.0,30594.0,0.27059213]
[1688340017624,0.28474069,30595.0,30594.0,0.27059213]
[1688340017923,0.266511,30595.0,30594.0,0.27059213]
[1688340018321,0.266511,30595.0,30594.0,0.33584135]
[1688340020123,0.266511,30595.0,30594.0,0.35407104]
[1688340020426,0.266511,30595.0,30594.0,0.33584135]
[1688340021021,0.266511,30595.0,30594.0,0.35407104]
[1688340021623,0.266511,30595.0,30594.0,0.33584135]
[1688340022724,0.02675007,30597.0,30594.0,0.33584135]
[1688340022928,0.60829025,30600.0,30596.0,0.02611]
[1688340022929,0.00049025,30600.0,30596.0,0.02611]
[1688340023126,0.00049025,30600.0,30599.0,0.874408]
[1688340023326,0.00049025,30600.0,30599.0,0.266608]
[1688340023514,0.03509825,30600.0,30599.0,0.28545745]
[1688340023714,0.03509825,30600.0,30599.0,0.30368714]
[1688340024918,0.01549025,30600.0,30599.0,0.40156254]
[1688340028820,0.01549025,30600.0,30599.0,0.15456254]
[1688340029026,0.01549025,30600.0,30599.0,0.40156254]
[1688340030234,0.01549025,30600.0,30599.0,0.30368714]
[1688340030431,0.01549025,30600.0,30599.0,0.40158982]
[1688340031326,0.01549025,30600.0,30599.0,0.6484892]
[1688340031636,0.01549025,30600.0,30599.0,0.55058714]
[1688340032232,0.01549025,30600.0,30599.0,0.64848362]
[1688340032537,0.01549025,30600.0,30599.0,0.64916366]
[1688340033137,0.00049025,30600.0,30599.0,0.64916366]
[1688340037942,0.00049025,30600.0,30599.0,1.00996366]
[1688340040250,0.00049025,30600.0,30599.0,0.91206718]
[1688340045160,0.00049025,30600.0,30599.0,1.00996366]
[1688340048256,0.16830357,30605.0,30600.0,0.03707914]
[1688340048558,0.50030757,30608.0,30604.0,0.33040808]
[1688340048761,0.50030757,30608.0,30607.0,0.266003]
[1688340048762,0.18790757,30608.0,30607.0,0.266003]
[1688340049464,0.16830357,30608.0,30607.0,0.62628214]
[1688340049757,0.16830357,30608.0,30607.0,0.62695505]
[1688340049758,0.19506322,30608.0,30607.0,0.62695505]
[1688340049964,0.02675965,30608.0,30607.0,0.62695505]
[1688340050463,0.380402,30610.0,30607.0,0.62695505]
[1688340050671,0.380402,30610.0,30609.0,0.247]
[1688340050856,0.380402,30610.0,30609.0,0.266602]
[1688340051550,0.380402,30610.0,30609.0,0.26727038]
[1688340051755,0.380402,30610.0,30609.0,0.28550007]
[1688340051963,0.380402,30610.0,30609.0,0.26727038]
[1688340052460,0.380402,30610.0,30609.0,0.28550007]
[1688340052653,0.380402,30610.0,30609.0,0.28611983]
[1688340052854,0.04557813,30610.0,30609.0,0.28611983]
[1688340053258,0.04557813,30610.0,30609.0,0.26727038]
[1688340055062,0.04557813,30610.0,30609.0,0.28550007]
[1688340055463,0.04557813,30610.0,30609.0,0.26727038]
[1688340055765,0.04557813,30610.0,30609.0,0.28550007]
[1688340055965,0.04557813,30610.0,30609.0,0.30434952]
[1688340056763,0.04557813,30610.0,30609.0,0.28611983]
[1688340056961,0.04557813,30610.0,30609.0,0.30434952]
[1688340060361,0.04557813,30610.0,30609.0,0.28611983]
[1688340061870,0.04557813,30610.0,30609.0,0.30434952]
[1688340062272,0.04557813,30610.0,30609.0,0.28611983]
[1688340062660,0.04557813,30610.0,30609.0,0.00066838]
[1688340062661,0.29857813,30610.0,30609.0,0.00066838]
[1688340062862,0.29857813,30610.0,30605.0,0.058811]
[1688340063069,0.247,30606.0,30605.0,0.058811]
[1688340063261,0.266604,30606.0,30605.0,0.058811]
[1688340063662,0.28483369,30606.0,30605.0,0.058811]
[1688340064677,0.29133369,30606.0,30604.0,0.24639008]
[1688340064863,0.62602969,30605.0,30604.0,0.24639008]
[1688340065171,0.64563469,30605.0,30604.0,0.24639008]
[1688340066364,0.64563469,30605.0,30604.0,0.26599508]
[1688340066563,0.627405,30605.0,30604.0,0.26599508]
[1688340067965,0.64563469,30605.0,30604.0,0.26599508]
[1688340068359,0.64563469,30605.0,30604.0,0.33119816]
[1688340071778,0.28483469,30605.0,30604.0,0.33119816]
[1688340072080,0.64563469,30605.0,30604.0,0.33119816]
[1688340072578,0.64353469,30605.0,30604.0,0.26649508]
[1688340072778,0.64353469,30605.0,30604.0,0.33169816]
[1688340073670,0.625305,30605.0,30604.0,0.33169816]
[1688340073870,0.64353469,30605.0,30604.0,0.33169816]
[1688340074072,0.66986499,30605.0,30604.0,0.33169816]
[1688340080382,0.30906499,30605.0,30604.0,0.33169816]
[1688340081068,0.2908353,30605.0,30604.0,0.33169816]
[1688340081475,0.30906499,30605.0,30604.0,0.33169816]
[1688340082568,0.06416499,30605.0,30604.0,0.33119816]
[1688340085888,0.0459353,30605.0,30604.0,0.33119816]
[1688340086784,0.06416499,30605.0,30604.0,0.33119816]
[1688340087490,0.0459353,30605.0,30604.0,0.33119816]
[1688340088296,0.0459353,30605.0,30604.0,0.26599508]
[1688340089300,0.06416499,30605.0,30604.0,0.33129983]
[1688340090089,0.06416499,30605.0,30604.0,0.26599508]
[1688340090285,0.06416499,30605.0,30604.0,0.3637997]
[1688340090589,0.0459353,30605.0,30604.0,0.3637997]
[1688340092196,0.0065,30601.0,30600.0,0.06532495]
[1688340092492,1.239907,30601.0,30597.0,0.13064522]
[1688340092679,0.01961,30597.0,30595.0,0.13064522]
[1688340092991,0.247,30596.0,30595.0,0.13064522]
[1688340093293,0.28483969,30596.0,30593.0,0.13113547]
[1688340093491,0.6073,30594.0,30593.0,0.13113547]
[1688340093691,0.64514169,30594.0,30593.0,0.34750578]
[1688340094784,0.64514169,30594.0,30593.0,0.13113547]
[1688340094987,0.64514169,30594.0,30593.0,0.00049025]
[1688340100600,0.67141412,30594.0,30593.0,0.00049025]
[1688340101185,0.67141412,30594.0,30593.0,0.00437069]
[1688340105501,0.67141412,30594.0,30593.0,0.01937069]
[1688340105893,0.67141412,30594.0,30593.0,0.01920076]
[1688340115604,0.67141412,30594.0,30593.0,0.00420076]
[1688340117809,0.65318443,30594.0,30593.0,0.28816221]
[1688340119815,0.65318443,30594.0,30593.0,0.3063919]
[1688340120115,0.65318443,30594.0,30593.0,0.04266221]
[1688340120518,0.15805021,30597.0,30593.0,1.40346221]
[1688340120718,0.019606,30603.0,30596.0,0.3608]
[1688340120910,0.20741515,30606.0,30602.0,0.6064]
[1688340121212,0.20741515,30606.0,30603.0,0.03845545]
[1688340121417,0.20741515,30606.0,30602.0,0.2459]
[1688340121418,0.247,30604.0,30602.0,0.2459]
[1688340121714,0.266606,30603.0,30602.0,0.28373669]
[1688340122312,0.266606,30603.0,30602.0,0.28435645]
[1688340122709,0.266606,30603.0,30602.0,0.03845645]
[1688340124120,0.266606,30603.0,30602.0,0.019607]
[1688340125617,0.28483569,30603.0,30602.0,0.019607]
[1688340126122,0.266606,30603.0,30602.0,0.019607]
[1688340126315,0.247,30603.0,30602.0,0.03845645]
[1688340127317,0.2465,30604.0,30602.0,0.64625645]
[1688340127519,0.2465,30604.0,30603.0,0.28407914]
[1688340127711,0.2465,30604.0,30603.0,0.30368514]
[1688340128018,0.247,30604.0,30603.0,0.05668514]
[1688340131421,0.247,30604.0,30603.0,0.03845545]
[1688340131730,0.266605,30604.0,30603.0,0.019606]
[1688340132230,0.28483469,30604.0,30603.0,0.019606]
[1688340134524,0.266605,30604.0,30603.0,0.019606]
[1688340134728,0.28483469,30604.0,30603.0,0.019606]
[1688340135329,0.266605,30604.0,30603.0,0.019606]
[1688340135936,0.26641431,30604.0,30603.0,0.019606]
[1688340137431,0.00049014,30606.0,30603.0,0.28545545]
[1688340137732,0.00049014,30606.0,30605.0,0.247]
[1688340137933,0.00049014,30606.0,30605.0,0.28545445]
[1688340138228,0.00049014,30606.0,30605.0,0.30368414]
[1688340138624,0.00049014,30606.0,30605.0,0.62838414]
[1688340141135,0.05488565,30606.0,30605.0,0.591305]
[1688340141834,0.07448965,30606.0,30605.0,0.591305]
[1688340142344,0.07448965,30606.0,30605.0,0.60953469]
[1688340142639,0.26709414,30606.0,30605.0,0.344305]
[1688340142827,0.26709414,30606.0,30605.0,0.36253469]
[1688340143229,0.26709414,30606.0,30605.0,0.38138414]
[1688340144834,0.24749014,30606.0,30605.0,0.38138414]
[1688340145139,0.02654487,30607.0,30605.0,0.98768414]
[1688340145441,0.15840315,30610.0,30606.0,0.28257914]
[1688340145627,0.15840315,30610.0,30609.0,0.2464]
[1688340145832,0.15840315,30610.0,30609.0,0.266002]
[1688340146142,0.247,30611.0,30609.0,0.266002]
[1688340146334,0.247,30611.0,30610.0,0.28297914]
[1688340146536,0.247,30611.0,30610.0,0.30258114]
[1688340147633,0.2731821,30611.0,30610.0,0.30258114]
[1688340148436,0.2881821,30611.0,30610.0,0.30258114]
[1688340151137,0.0411821,30611.0,30610.0,0.30258114]
[1688340151343,0.015,30611.0,30610.0,0.30258114]
[1688340154138,0.015,30611.0,30610.0,0.66338114]
[1688340156638,0.034601,30611.0,30610.0,0.66338114]
[1688340157743,0.034601,30611.0,30610.0,0.30258114]
[1688340157948,0.034601,30611.0,30610.0,0.66338114]
[1688340158249,0.019601,30611.0,30610.0,0.66338114]
[1688340159640,0.37683183,30613.0,30610.0,0.66338114]
[1688340159948,0.37683183,30613.0,30612.0,0.2651]
[1688340160245,0.32243632,30613.0,30612.0,0.30217914]
[1688340162641,0.32293632,30613.0,30612.0,0.05667914]
[1688340162837,0.68373632,30613.0,30612.0,0.0196]
[1688340163648,0.70196601,30613.0,30612.0,0.0196]
[1688340164146,0.70196601,30613.0,30610.0,0.058803]
[1688340164345,0.2449,30611.0,30610.0,0.058803]
[1688340164540,0.264501,30611.0,30610.0,0.058803]
[1688340164941,0.28273069,30611.0,30610.0,0.058803]
[1688340165148,0.60603069,30611.0,30610.0,0.058803]
[1688340166248,0.3233,30611.0,30610.0,0.304303]
[1688340166443,0.2465,30612.0,30610.0,0.665103]
[1688340166646,0.2465,30612.0,30611.0,0.266001]
[1688340166842,0.2465,30612.0,30611.0,0.30308014]
[1688340169252,0.2465,30612.0,30611.0,0.019601]
[1688340169454,0.2666,30612.0,30611.0,0.019601]
[1688340170158,0.28482969,30612.0,30611.0,0.019601]
[1688340171052,0.28482969,30612.0,30608.0,0.304304]
[1688340171053,0.29132969,30612.0,30608.0,0.2455]
[1688340171256,0.247,30609.0,30608.0,0.2455]
[1688340171551,0.266602,30609.0,30608.0,0.2455]
[1688340171750,0.28483169,30609.0,30608.0,0.2455]
[1688340172253,0.59923169,30609.0,30608.0,0.2455]
[1688340172446,0.59923169,30609.0,30607.0,0.019603]
[1688340172649,0.2465,30608.0,30607.0,0.019603]
[1688340172950,0.266103,30608.0,30607.0,0.019603]
[1688340174569,0.29083269,30608.0,30607.0,0.019603]
[1688340174851,0.29083269,30608.0,30607.0,0.034603]
[1688340175253,0.29083269,30608.0,30606.0,0.00049003]
[1688340175454,0.6999282,30607.0,30606.0,0.00049003]
[1688340175657,0.6999282,30607.0,30601.0,0.065357]
[1688340175658,0.68169851,30607.0,30601.0,0.065357]
[1688340175957,0.019607,30601.0,30600.0,0.44269533]
[1688340176259,0.266607,30601.0,30600.0,0.11719533]
[1688340179365,0.64563669,30601.0,30598.0,0.15641733]
[1688340179662,0.247,30599.0,30598.0,0.15641733]
[1688340179861,0.28483869,30599.0,30598.0,0.058829]
[1688340180050,0.28483869,30599.0,30598.0,0.15641733]
[1688340182664,0.266609,30599.0,30598.0,0.15641733]
[1688340182855,0.266609,30599.0,30598.0,0.19349647]
[1688340183248,0.266609,30599.0,30598.0,0.17526678]
[1688340183661,0.266609,30599.0,30598.0,0.15641733]
[1688340186057,0.266609,30599.0,30598.0,0.058829]
[1688340186251,0.28483869,30599.0,30598.0,0.058829]
[1688340186456,0.266609,30599.0,30598.0,0.058829]
[1688340187558,0.28483869,30599.0,30598.0,0.058829]
[1688340188164,0.28483869,30599.0,30597.0,0.39045619]
[1688340188165,0.28483869,30599.0,30597.0,0.06585619]
[1688340188462,0.28483869,30598.0,30597.0,0.06585619]
[1688340189558,0.266609,30598.0,30597.0,0.06585619]
[1688340190264,0.266609,30598.0,30597.0,0.08408588]
[1688340190763,0.266609,30598.0,30597.0,0.06585619]
[1688340190968,0.266609,30598.0,30597.0,0.08470564]
[1688340192463,0.266609,30598.0,30597.0,0.06585619]
[1688340198472,0.28483869,30598.0,30597.0,0.06585619]
[1688340198870,0.266609,30598.0,30597.0,0.06585619]
[1688340199465,0.266609,30598.0,30597.0,0.08470564]
[1688340200163,0.266609,30598.0,30597.0,0.06585619]
[1688340201959,0.266609,30598.0,30597.0,0.08408588]
[1688340202161,0.266609,30598.0,30597.0,0.10293533]
[1688340202365,0.266609,30598.0,30597.0,0.08470564]
[1688340202761,0.266609,30598.0,30597.0,0.06585619]
[1688340203775,0.266609,30598.0,30597.0,0.08470564]
[1688340203976,0.266609,30598.0,30597.0,0.10293533]
[1688340204377,0.266609,30598.0,30597.0,0.08470564]
[1688340205684,0.266609,30598.0,30597.0,0.10293533]
[1688340206180,0.266609,30598.0,30597.0,0.08470564]
[1688340206383,0.266609,30598.0,30597.0,0.10293533]
[1688340207483,0.266609,30598.0,30597.0,0.08470564]
[1688340208483,0.266609,30598.0,30597.0,0.18229397]
[1688340208785,0.266609,30598.0,30597.0,0.54309397]
[1688340209173,0.266609,30598.0,30597.0,0.56132366]
[1688340209376,0.266609,30598.0,30597.0,0.44550564]
[1688340209676,0.266609,30598.0,30597.0,0.46373533]
[1688340209882,0.28483869,30598.0,30597.0,0.02010019]
[1688340210080,0.28483869,30598.0,30597.0,0.01994471]
[1688340211086,0.266609,30598.0,30597.0,0.01994471]
[1688340211580,0.28483869,30598.0,30597.0,0.01994471]
[1688340212989,0.28483869,30598.0,30597.0,0.08513804]
[1688340213284,0.28483869,30598.0,30597.0,0.06552804]
[1688340214183,0.28483869,30598.0,30597.0,0.00033471]
[1688340216280,0.28483869,30598.0,30597.0,0.09792304]
[1688340217488,0.28483869,30598.0,30597.0,0.10072443]
[1688340220185,0.28483869,30598.0,30597.0,0.13378132]
[1688340220482,0.28483869,30598.0,30597.0,0.0031361]
[1688340222086,0.28483869,30598.0,30597.0,0.13378132]
[1688340222480,0.28483869,30598.0,30597.0,0.10115396]
[1688340222681,0.29133869,30598.0,30597.0,0.10115396]
[1688340222876,0.29133869,30598.0,30597.0,0.09835257]
[1688340223282,0.29133869,30598.0,30597.0,0.06568334]
[1688340223597,0.31133869,30598.0,30597.0,0.06568334]
[1688340223977,0.33033869,30598.0,30597.0,0.06568334]
[1688340224291,0.33033869,30598.0,30597.0,0.00033471]
[1688340224676,0.33033869,30598.0,30597.0,0.06567887]
[1688340224884,0.32383869,30598.0,30597.0,0.06567887]
[1688340228482,0.30383869,30598.0,30597.0,0.06567887]
[1688340228795,0.28483869,30598.0,30597.0,0.06567887]
[1688340230690,0.28483869,30598.0,30597.0,0.00033471]
[1688340230891,0.28483869,30598.0,30597.0,0.06567887]
[1688340231996,0.28483869,30598.0,30597.0,0.00033471]
[1688340232590,0.28483869,30598.0,30597.0,0.06567887]
[1688340233188,0.64563869,30598.0,30597.0,0.06567887]
[1688340233990,0.66463869,30598.0,30597.0,0.06567887]
[1688340234299,0.68463869,30598.0,30597.0,0.06567887]
[1688340235003,0.73463869,30598.0,30597.0,0.00033471]
[1688340236300,0.01822969,30597.0,30595.0,0.06534416]
[1688340236499,0.26611,30596.0,30595.0,0.06534416]
[1688340236894,0.28433969,30596.0,30595.0,0.06534416]
[1688340237096,0.60913969,30596.0,30595.0,0.06534416]
[1688340239995,0.96993969,30596.0,30595.0,0.06534416]
[1688340243399,0.96993969,30596.0,30594.0,0.06534416]
[1688340243601,0.247,30595.0,30593.0,0.09801786]
[1688340243793,0.266612,30594.0,30593.0,0.09801786]
[1688340244389,0.28484169,30594.0,30593.0,0.09801786]
[1688340245293,0.28484169,30594.0,30593.0,0.06528798]
[1688340245904,0.0654,30593.0,30592.0,0.00049027]
[1688340246104,0.05,30590.0,30589.0,0.06528798]
[1688340246302,0.987614,30590.0,30589.0,0.06528798]
[1688340246494,1.00584369,30590.0,30589.0,0.06528798]
[1688340246691,1.00584369,30590.0,30589.0,0.04766109]
[1688340246897,1.32484369,30590.0,30589.0,0.04766109]
[1688340247202,1.32484369,30590.0,30589.0,0.05257465]
[1688340247400,1.32484369,30590.0,30589.0,0.00491356]
[1688340247802,1.32484369,30590.0,30587.0,0.09801786]
[1688340248006,0.247,30588.0,30587.0,0.09801786]
[1688340248208,0.266616,30588.0,30587.0,0.09801786]
[1688340248692,0.28484569,30588.0,30587.0,0.09801786]
[1688340249207,0.28484569,30588.0,30586.0,0.00049036]
[1688340249208,0.28484569,30588.0,30586.0,0.09850822]
[1688340249507,0.64564569,30587.0,30586.0,0.09850822]
[1688340249802,0.64564569,30587.0,30586.0,0.00541077]
[1688340251103,0.627416,30587.0,30586.0,0.10323688]
[1688340251296,0.64564569,30587.0,30586.0,0.10323688]
[1688340252500,0.64564569,30587.0,30586.0,0.00541077]
[1688340252905,0.64564569,30587.0,30586.0,0.10324386]
[1688340254001,0.64564569,30587.0,30586.0,0.00541077]
[1688340255906,0.71114569,30587.0,30586.0,0.00541077]
[1688340265411,0.11631998,30589.0,30586.0,0.72916086]
[1688340265613,0.00049038,30592.0,30589.0,0.08178241]
[1688340265811,0.00049038,30592.0,30591.0,0.265114]
[1688340266003,0.00049038,30592.0,30591.0,0.2684798]
[1688340266210,0.00449038,30592.0,30591.0,0.2684798]
[1688340266418,0.00449038,30592.0,30591.0,0.28732925]
[1688340271421,0.00449038,30592.0,30591.0,0.38507878]
[1688340272017,0.00449038,30592.0,30591.0,0.64812925]
[1688340272722,0.00449038,30592.0,30591.0,0.74587878]
[1688340277328,0.00449038,30592.0,30591.0,0.64812925]
[1688340277520,0.00049038,30592.0,30591.0,0.64812925]
[1688340277721,0.00049038,30592.0,30591.0,0.74595771]
[1688340280833,0.00049038,30592.0,30591.0,0.64812925]
[1688340281428,0.00049038,30592.0,30591.0,0.28732925]
[1688340281726,0.00049038,30592.0,30591.0,0.64812925]